Cogmind - Beta 11.1 @@@ ROGUE MODE // 2022.05.05 @ 17:32:28 Player: Savant Result: Destroyed by as-90892 with Assembled Blade Performance ------------- Evolutions (0) 0 Regions Visited (2) 400 Robots Destroyed (13) 65 Value Destroyed (349) 349 Prototype IDs (2) 40 Alien Tech Used (0) 0 Bonus (0) 0 TOTAL SCORE: 854 Bonus ------- None Cogmind --------- Core Integrity 0/250 Matter 300/300 Energy 150/150 System Corruption 4% Temperature Cool (0) Movement Treading (240) Ox1 Location -10/Mines Parts ------- > --- POWER (1) -------- Light Angular Momentum Engine > --- PROPULSION (2) --- Improved Treads Wheel > --- UTILITY (2) ------ Improved Heat Sink Large Storage Unit > --- WEAPON (2) ------- Heavy Assault Rifle > --- INVENTORY (15) --- Ion Engine Ion Engine Improved Treads Aluminum Leg Wheel Improved Heat Sink Medium Matter Pod (100) Hardened Light Armor Plating Hardened Light Armor Plating Beam Cannon Light Assault Rifle Rocket Launcher Datajack Mining Laser Peak State ------------ > --- POWER ------------ Light Angular Momentum Engine > --- PROPULSION ------- Improved Treads Wheel > --- UTILITY ---------- Improved Heat Sink Large Storage Unit > --- WEAPON ----------- Light Assault Rifle Heavy Assault Rifle > --- INVENTORY -------- Ion Engine Ion Engine Improved Treads Aluminum Leg Wheel Improved Heat Sink Medium Matter Pod Hardened Light Armor Plating Hardened Light Armor Plating Beam Cannon Light Assault Rifle Rocket Launcher Datajack Mining Laser [Rating: 17] Favorites ----------- Power Ion Engine Engine Ion Engine Propulsion Improved Treads Treads Improved Treads Leg Aluminum Leg Wheel Wheel Utility Large Storage Unit Device Improved Heat Sink Storage Large Storage Unit Protection Hardened Light Armor Plating Weapon Assault Rifle Energy Cannon Beam Cannon Ballistic Gun Assault Rifle Launcher Rocket Launcher Build | -11 -10 -10 ------- Run | Scr Mat Min Slots Evolved . | . . . Power . | . . . Propulsion . | . . . Utility . | . . . Weapon . | . . . Parts Attached 33 | 7 10 16 Power 4 | 1 . 3 Engine 4 | 1 . 3 Core . | . . . Reactor . | . . . Propulsion 9 | 2 4 3 Treads 4 | . 2 2 Leg 4 | 2 2 . Wheel 1 | . . 1 Hover . | . . . Flight . | . . . Utility 8 | 1 4 3 Device 3 | . 2 1 Storage 2 | 1 1 . Processor . | . . . Hackware . | . . . Protection 3 | . 1 2 Artifact . | . . . Weapon 12 | 3 2 7 Energy Gun . | . . . Energy Cannon 1 | . . 1 Ballistic Gun 9 | 3 2 4 Ballistic Cannon . | . . . Launcher 2 | . . 2 Special Weapon . | . . . Impact Weapon . | . . . Slashing Weapon . | . . . Piercing Weapon . | . . . Special Melee Weapon . | . . . Unidentified Prototypes . | . . . Parts Lost 9 | . . 9 Power 1 | . . 1 Propulsion 2 | . . 2 Utility 2 | . . 2 Weapon 4 | . . 4 Highest Loss Streak 5 | . . 5 To Critical Strikes . | . . . Average Slot Usage (%) 96 | . 93 99 Engine 13 | . 14 13 Treads 16 | . 12 20 Leg 6 | . 14 . Wheel 4 | . . 7 Device 6 | . 5 7 Storage 14 | . 14 14 Protection 4 | . 2 6 Energy Cannon 1 | . . 2 Ballistic Gun 26 | . 28 25 Naked Turns . | . . . Heaviest Build 36 | 14 36 36 Greatest Support 46 | 20 46 46 Greatest Overweight (x) 2 | . . 2 Average Overweight (x) . | . . 1 Largest Inventory Capacity 15 | 8 15 15 Average Capacity 12 | 7 11 15 Most Carried 15 | 5 15 15 Average Carried 10 | 1 8 12 Final Capacity 15 | 8 15 15 Final Carried 15 | 5 15 14 Class Distribution -------------------- 100% | Mutant Dominant Class ---------------- Mutant | -10/Materials Mutant | -10/Mines Resources | -11 -10 -10 ----------- Run | Scr Mat Min Matter Collected 981 | 204 318 459 Remotely . | . . . Salvage Created 568 | . 259 309 Parts 29 | . 19 10 Haulers Intercepted . | . . . Recyclers Shooed 2 | . 1 1 Parts Field Recycled . | . . . Retrieved Matter . | . . . Parts Self-Destructed . | . . . Prevented . | . . . Kills | -11 -10 -10 ------- Run | Scr Mat Min Combat Hostiles Destroyed 26 | . 6 20 Guns 21 | . 6 15 Cannons 1 | . . 1 AOE 4 | . . 4 Classes Destroyed 5 | . 2 3 Worker 1 | . 1 . Tunneler 1 | . . 1 Swarmer 3 | . . 3 Grunt 8 | . 6 2 Assembled 15 | . . 15 Best Kill Streak 6 | . 5 6 Combat Bots Only 5 | . 4 5 Max Kills in Single Turn 2 | . 2 2 Gunslinging . | . . . Exploded 2 | . . 2 Melee . | . . . Uniques/NPCs Destroyed . | . . . Combat | -11 -10 -10 -------- Run | Scr Mat Min Damage Taken 1934 | . 220 1714 Core 260 | . 40 220 Absorbed by Shields . | . . . Core Remaining (%) 100 | 100 . . Volleys Fired 67 | . 15 52 Largest 2 | . 2 2 Hottest 83 | . 46 83 Shots Fired 131 | . 30 101 Gun 112 | . 30 82 Cannon 16 | . . 16 Launcher 3 | . . 3 Special . | . . . Kinetic 112 | . 30 82 Thermal 16 | . . 16 Explosive 3 | . . 3 Electromagnetic . | . . . Robot Hit Streak 9 | . 9 6 Robot Miss Streak 6 | . 2 6 Penetration Max . | . . . Secondary Targets 6 | . 2 4 Max Gunslinging Chain 1 | . 1 1 Shots Hit Robots 75 | . 23 52 Core Hits 49 | . 15 34 Critical Kills . | . . . Critical Parts Destroyed 1 | . . 1 Critical Strikes 1 | . . 1 Destroy 1 | . . 1 Melee Attacks . | . . . Impact . | . . . Slashing . | . . . Piercing . | . . . Sneak Attacks . | . . . Combat Hostiles . | . . . Follow-up Attacks . | . . . Damage Inflicted 1464 | . 345 1119 Guns 1069 | . 320 749 Cannons 107 | . . 107 Explosions 262 | . . 262 Melee . | . . . Ramming 26 | . 25 1 Kinetic 1069 | . 320 749 Thermal 107 | . . 107 Explosive 262 | . . 262 Electromagnetic . | . . . Impact . | . . . Slashing . | . . . Piercing . | . . . Highest Corruption 4 | . . 4 Average Corruption 3 | . . 3 Corruption Purged . | . . . Corruption Blocked . | . . . Effects 13 | . . 13 Message Errors 5 | . . 5 Matter Fused 4 | . . 4 Heat Flow Errors 1 | . . 1 Energy Discharges 3 | . . 3 Overload Shots . | . . . Overflow Damage . | . . . Projectiles . | . . . Explosions . | . . . Melee . | . . . Knockbacks . | . . . Impact . | . . . Kinetic . | . . . Secondary . | . . . Self-Inflicted Damage 57 | . . 57 Shots 1 | . . 1 Rammed 3 | . 2 1 Targets Rammed 3 | . 2 1 Kicked . | . . . Crushed . | . . . Highest Temperature 448 | . 8 448 Average Temperature 155 | . 2 162 Received Heat Transfer 252 | . 123 129 Effects 8 | . . 8 Shutdowns 2 | . . 2 Energy Bleed 1 | . . 1 Matter Decay 2 | . . 2 Damage (minor) 1 | . . 1 Damage (major) 2 | . . 2 Siege Activations . | . . . Robots Corrupted . | . . . Combat Hostiles . | . . . Parts Fried . | . . . Impact Corruptions . | . . . Robots Melted . | . . . Combat Hostiles . | . . . Parts Melted 1 | . . 1 Heat Transferred 222 | . . 222 Parts Sabotaged . | . . . Parts Stolen . | . . . Parts Stripped . | . . . Power Chain Reactions . | . . . Missiles Intercepted . | . . . Alert | -11 -10 -10 ------- Run | Scr Mat Min Peak Influence 213 | . 213 174 Initial 12 | . . 12 Average 57 | . 77 45 Maximum Alert Level 1 | . 1 . Low Security (%) 97 | 100 93 100 Level 1 2 | . 6 . Level 2 . | . . . Level 3 . | . . . Level 4 . | . . . Level 5 . | . . . High Security . | . . . Max Security . | . . . Squads Dispatched 1 | . 1 . Investigation . | . . . Extermination . | . . . Reinforcement 1 | . 1 . Assault . | . . . Garrison . | . . . Intercept . | . . . Searches Triggered . | . . . Construction Impeded . | . . . Haulers Reinforced . | . . . Active Scanning Responses . | . . . Cargo Convoy Interrupts . | . . . Stealth | -11 -10 -10 --------- Run | Scr Mat Min Distress Signals 1 | . 1 . Communications Jammed . | . . . Distress Signals . | . . . Times Spotted 34 | . 9 25 Peak Tracking Total 6 | . 5 6 Tactical Retreats . | . . . Traps | -11 -10 -10 ------- Run | Scr Mat Min Traps Triggered . | . . . Indirectly . | . . . Trap Hack Attempts . | . . . Triggered . | . . . Disarmed . | . . . Reprogrammed . | . . . Reused . | . . . Traps Extracted . | . . . Installed . | . . . Triggered . | . . . Machines | -11 -10 -10 ---------- Run | Scr Mat Min Machines Disabled . | . . . Max in Single Turn . | . . . Machines Sabotaged . | . . . Garrisons Compromised . | . . . Overloaded Fab Kills . | . . . Hacking | -11 -10 -10 --------- Run | Scr Mat Min Machines Accessed 7 | . 7 . Terminals 7 | . 7 . Fabricators . | . . . Repair Stations . | . . . Recycling Units . | . . . Scanalyzers . | . . . Garrison Access . | . . . Total Hacks 27 | . 27 . Successful 13 | . 13 . Failed 14 | . 14 . Catastrophic 1 | . 1 . Database Lockouts . | . . . Manual 17 | . 17 . Terminals 27 | . 27 . Fabricators . | . . . Repair Stations . | . . . Recycling Units . | . . . Scanalyzers . | . . . Garrison Access . | . . . Terminal Hacks 10 | . 10 . Part Schematic 2 | . 2 . Robot Analysis 2 | . 2 . Prototype ID Bank 1 | . 1 . Branch Access Points 1 | . 1 . Locate Traps 1 | . 1 . Zone Layout 3 | . 3 . Fabricator Hacks . | . . . Repair Station Hacks . | . . . Recycling Unit Hacks . | . . . Scanalyzer . | . . . Garrison Access Hacks . | . . . Unauthorized Hacks 3 | . 3 . Terminals 3 | . 3 . Assimilate 1 | . 1 . Botnet 2 | . 2 . Fabricators . | . . . Repair Stations . | . . . Recycling Units . | . . . Scanalyzers . | . . . Garrison Access . | . . . Data Cores Recovered . | . . . Used . | . . . Hacking Detections 7 | . 7 . Full Trace Events . | . . . Feedback Events . | . . . Feedback Blocked . | . . . Robot Schematics Acquired . | . . . Robots Built . | . . . Authchips . | . . . Time . | . . . Total Robot Build Rating . | . . . Part Schematics Acquired 2 | . 2 . Parts Built . | . . . Authchips . | . . . Time . | . . . Total Part Build Rating . | . . . Parts Repaired . | . . . Time . | . . . Parts Recycled . | . . . Recycled Matter . | . . . Retrieved Matter . | . . . Retrieved Components . | . . . Parts Scanalyzed . | . . . Part Schematics Acquired . | . . . Parts Damaged . | . . . Bothacking | -11 -10 -10 ------------ Run | Scr Mat Min Used RIF Installer . | . . . Robots Hacked . | . . . Non-combat . | . . . Combat . | . . . Robot Hacks Applied . | . . . Relay Couplers Released . | . . . Fabnet Peak Effective % . | . . . Robots Rewired . | . . . Allies Hacked . | . . . Hacks Repelled . | . . . Allies | -11 -10 -10 -------- Run | Scr Mat Min Total Allies 1 | . 1 . Largest Group 1 | . 1 . Highest-Rated Group 10 | . 10 . Highest-Rated Ally 10 | . 10 . Total Orders . | . . . Ally Attacks . | . . . Total Damage . | . . . Kills . | . . . Allies Corrupted . | . . . Allies Melted . | . . . Intel | -11 -10 -10 ------- Run | Scr Mat Min Robot Analysis Total 2 | . 2 . Derelict Logs Recovered . | . . . Drone Launches . | . . . Drone Recoveries . | . . . Exploration | -11 -10 -10 ------------- Run | Scr Mat Min Turns Passed 1351 | 73 593 685 Spaces Moved 774 | 52 361 361 Core 5 | 5 . . Treads 284 | . 156 128 Legs 252 | 47 205 . Wheels 233 | . . 233 Hover . | . . . Flight . | . . . Fastest Speed 50 | 50 120 110 Average Speed 134 | 113 137 134 Slowest Speed 240 | 120 160 240 Overloaded Moves . | . . . Propulsion Burnouts . | . . . Robots Hopped . | . . . Cave-ins Triggered . | . . . Exploration Rate (%) 40 | 4 65 52 Regions Visited 2 Branch Regions 1 Pre-discovered Areas . | . . . Known Exits Taken 1 | . 1 . Unknown Exits Taken 1 | 1 . . Scrap Searched . | . . . Spaces Dug 12 | . . 12 Terrain Destroyed 27 | . . 27 Melee . | . . . Projectile . | . . . AOE 27 | . . 27 Terrain Rammed . | . . . Walls Destroyed . | . . . Machines Disabled . | . . . Actions | -11 -10 -10 --------- Run | Scr Mat Min Total 952 | 62 433 457 Wait 40 | . 19 21 Move 772 | 51 360 361 Hop . | . . . Pick Up 24 | 4 15 5 Fast Attach 8 | 6 2 . Attach 11 | . 2 9 Detach 2 | . 1 1 Swap 14 | 1 6 7 Drop 11 | . 11 . Fire 67 | . 15 52 Melee . | . . . Ram . | . . . Kick . | . . . Crush 3 | . 2 1 Escape Stasis . | . . . Rewire . | . . . Trap . | . . . Miscellaneous . | . . . Route ------- -11/Scrapyard -10/Materials (discovered 2 exits: [*Mat] / *Min) -10/Mines (discovered 1 exit: [*Mat]) History --------- Turn | Location | Event 2 | -11/Scrapyard | Met Revision 17 33 | -11/Scrapyard | Discovered new exit (range 16) 74 | -11/Scrapyard | Entered Materials 118 | -10/Materials | Identified exit to Mines 306 | -10/Materials | Build established: Mutant 433 | -10/Materials | Discovered new exit (range 11) 667 | -10/Materials | Entered Mines 681 | -10/Mines | Met a Derelict bent on vengeance 699 | -10/Mines | Assembled infested the area 769 | -10/Mines | Core integrity fell below 50% 808 | -10/Mines | Lost 5 parts (1p1n1u2w) 813 | -10/Mines | Received a Rocket Launcher from a helpful Derelict 831 | -10/Mines | Discovered new exit (range 4) 1348 | -10/Mines | Core integrity fell below 20% 1352 | -10/Mines | Destroyed by as-90892 with Assembled Blade Last Messages --------------- 01115_ Extracted 4 matter. 01120_ K-01 Serf collects debris. 01170_ P43,R<#AUP0UUIN| W%5U9&&6T 01187_ System corrupted: Heat flow error (+203). 01228_ ZO6AHTGA=|VO9SBOL 01260_ System corrupted: Matter fused (-10). 01262_ K-01 Serf collects debris. 01275_ as-02353 destroyed. 01276_ 7:XSFFN,NWB>YWHOXU2Y38K6RUWO 01276_ K-01 Serf collects debris. 01282_ Acquired 11 matter. 01283_ K-01 Serf collects debris. 01290_ Acquired 11 matter. 01292_ K-01 Serf collects debris. 01306_ ICAU,WIGZ3>4EHOQTQ RO#&CLGD/OHKZQ EJMN/3 01308_ K-01 Serf collects debris. 01344_ Acquired 10 matter. 01347_ Acquired 4 matter. 01349_ Lgt. Assault Rifle destroyed. Map ----- +----------------------------------------------------+ | ?????????????????????????????????????????????????? | | ?????????????????????????????????????????????????? | | ?????????????????????????????????????????????????? | | ?????????????????????????????????????????????????? | | ###??????????????????????????????????????????????? | | ##?????????????????????????????????????????????? | | ##????????????????????????????????????????????? | | #????????????????????????????????????????????? | | ##???????????????????????????????????????????? | | ##??????????????????????????????????????????? | | ##?????????????????????????????????????????? | | #???####??????????????????????????????????? | | #???# #?????????????????????????????????? | | #???# ##???????????????????????????????? | | #???# ##??????????????????????????????? | | # ##???# |????###???????????????????????? | | # #????# ????? #???????????????????????? | | # #?????# #?????#=#???????????????????????? | | ## ##?????# ##????#%#???????????????????????? | | ?## #??????# ###??#!#???????????????????????? | | ### ##?????## #### ###?????????????????????? | | ##???####% * ! #?????????????????????? | | ### ######!%!!!=%% !%=*=#?????????????????????? | | ??# ## !=%=!= ####!%#?????????????????????? | | ??# *=! =!!! #??#| #?????????????????????? | | ??# =%*= % ## #??#@=#?????????????????????? | | ??## = !%= !#### #??#[a#?????????????????????? | | ???##|!%| ##??## ##??#=%%!????????????????????? | | #####%%= ##????#####???#%|!*%???????????????????? | | !! *=%!%##?????????????=*=*%%%??????????????????? | | =%=!=! ##????????????? !####*=????????????????? | | ### |###?????????? <###????!%???????????????? | | ??## ! *%%=#??????????##????????##??????????????? | | ???##=%=%=!!#????????????????????????????????????? | | ????##|*=*=%#######??????????????????????????????? | | ?????##%===* #??????????????????????????????? | | ??????###%%%=## = ##?????????????????????????????? | | ????????##!= | ! #?????????????????????????????? | | ???????##!# *= ##????????????????????????????? | | ############ ##???????????????????????????? | | $ ## = #???????????????????????????? | | #######%### !|= #???????????????????????????? | | #?????# ### ! #???????????????????????????? | | #????## % ! #???????????????????????????? | | #????# = * ##??????????????????????????? | | ?????# =! |*= #######????????????????????? | | #????# ##???????????????????? | | ###### #???????????????????? | | ##???????????????????? | | ###????????????????????? | +----------------------------------------------------+ Best States ------------- Heat Dissipation 39 Energy Generation 18 Energy Capacity 250 Matter Stores 300 Matter Capacity 300 Sight Range 16 Terrain Scan Density 10 Armor Coverage 150 Evasion (%) 55 Recoil Reduction 2 Item Schematics ----------------- Hcp. Storage Unit | -10/Materials | Hacked Huge Storage Unit | -10/Materials | Hacked Robot Schematics ------------------ None Fabricated ------------ Nothing Alien Tech Used ----------------- None Achievements -------------- None Challenges ------------ None Game ------ Seed BackupTiamatShifter Manual? 0 Play Time 00:20:12 Cumulative 225.6 hours Start 2022.05.05 @ 17:16:29 End 2022.05.05 @ 17:32:28 Sessions 1 Manual Loads 0 Difficulty Rogue Special Mode None Game No. 65 Rogue 65 Adventurer 0 Explorer 0 Win Type - Total 11 Types 9/0/2/0/0/0/0/0/0 Lore% 79 Gallery% 82 Achievement% 69 Wizard Run 0 Options --------- ASCII 0 Keyboard 0 Movement Numpad Keybinds 0 Fullscreen 1 Font 14/SmallcapsGlow Map View 84x54 Tactical HUD 1 Map Filters NONE Filters NONE Steam 1 RUN: 3ac82b17-f0b5-40b8-8942-ecf5f9a06f8c